[Event "Super United Croatia GCT Blitz 2022"]
[Site "Zagreb"]
[Date "2022.07.24"]
[Round "12"]
[White "Dominguez Perez, Leinier"]
[Black "Firouzja, Alireza"]
[Result "0-1"]
[ECO "C78"]
[WhiteElo "2754"]
[BlackElo "2793"]
[Annotator "TA"]
[PlyCount "88"]
[EventDate "2022.07.20"]
[EventType "tourn"]
[EventCountry "CRO"]
[SourceTitle "playchess.com"]
[Source "ChessBase"]
[SourceQuality "1"]
[TimeControl "300+2"]

{[%evp 17,88,25,33,0,17,18,18,10,23,22,26,23,29,31,33,28,30,31,29,29,25,0,49,27,36,20,34,13,37,33,43,49,61,48,114,48,53,36,75,60,97,71,91,62,60,72,75,-489,84,71,79,0,0,0,12,0,0,-13,-4,-5,-9,-1188,-1181,-29980,-29981,-29981,-29981,-29981,-29982,-29982,-29977,-29976,-5500]} 1. e4 {[%emt 0:00:01]} e5 {[%emt 0:00:00]} 2. Nf3 {[%emt 0:00:01]} Nc6 {[%emt 0:00:01]} 3. Bb5 {[%emt 0:00:02][%cal Bf1b5,Bb5a4,Ba4b3][%mdl 32]} a6 {[%emt 0:00:01]} 4. Ba4 {[%emt 0:00:01]} Nf6 {[%emt 0:00:01]} 5. O-O {[%emt 0:00:02]} b5 {[%emt 0:00:01]} 6. Bb3 {[%emt 0:00:01]} Bb7 {[%emt 0:00:00]} 7. d3 {[%emt 0:00:04]} Bc5 {[%emt 0:00:03]} 8. a4 {[%emt 0:00:06]} O-O {[%emt 0:00:07]} 9. Nc3 {[%emt 0:00:04]} Na5 {[%emt 0:00:41] The main line 9...Na5 scores better than 9...b4.} 10. Bd5 {[%emt 0:00:35] C78: Ruy Lopez: Archangelsk and Möller Defences.} Nxd5 {[%emt 0:00:38]} 11. Nxd5 {[%emt 0:00:01]} Nc6 {[%emt 0:00:19] Inhibits b4.} 12. Be3 {[%emt 0:00:39] [#] The position is equal.} Bd6 $146 {[%emt 0:00:13]} ({Predecessor:} 12... d6 13. Bxc5 dxc5 14. axb5 axb5 15. Rxa8 Bxa8 16. Ne3 f6 17. Nd2 Nd4 18. f4 exf4 19. Rxf4 {1-0 (111) Stellwagen,D (2489)-Hector,J (2518) Pulvermuehle 2004}) 13. c4 {[%emt 0:00:34]} bxc4 {[%emt 0:01:16]} 14. dxc4 {[%emt 0:00:01]} a5 {[%emt 0:00:04]} 15. c5 {[%emt 0:00:15]} Be7 {[%emt 0:00:01]} 16. Qc2 {[%emt 0:00:08]} Re8 {[%emt 0:00:10]} 17. Rfd1 {[%emt 0:00:08]} h6 {[%emt 0:00:20]} 18. Rd2 {[%emt 0:00:13]} Bf8 {[%emt 0:00:06]} 19. Rad1 {[%emt 0:00:02]} Re6 {[%emt 0:00:02]} (19... d6 $11) 20. h3 {[%emt 0:00:24]} Rb8 {[%emt 0:00:01]} 21. Qc3 {[%emt 0:00:30]} Ba8 {[%emt 0:00:04]} 22. Rd3 {[%emt 0:00:20]} Nb4 {[%emt 0:00:34]} 23. Nxb4 {[%emt 0:00:05]} axb4 {[%emt 0:00:01]} 24. Qc4 {[%emt 0:00:02]} Bc6 {[%emt 0:00:01]} 25. b3 {[%emt 0:00:06]} Qf6 {[%emt 0:00:14]} (25... Qe8 $14) 26. Nd2 {[%emt 0:00:11]} (26. Ne1 $16) 26... Qg6 {[%emt 0:00:04]} 27. f3 {[%emt 0:00:07]} Kh8 {[%emt 0:00:01]} 28. Bf2 {[%emt 0:00:19]} Be7 {[%emt 0:00:09]} 29. Nf1 {[%emt 0:00:04][%cal Bd2f1,Bf1g3,Bg3e4][%mdl 32]} f5 {[%emt 0:00:01]} 30. Ng3 {[%emt 0:00:19]} fxe4 {[%emt 0:00:03]} 31. Nxe4 {[%emt 0:00:01]} Rf8 {[%emt 0:00:06]} 32. Kh2 $2 {[%emt 0:00:05][%mdl 8192] [#]} (32. a5 $16 {and life is bright.}) 32... Bg5 $2 {[%emt 0:00:17] Against R1d2} (32... Bxe4 $19 33. Qxe4 Qxe4 34. fxe4 Rxf2 35. Rxd7 Bxc5 36. Rxc7 Be3 37. Rd8+ Kh7) 33. Bg3 $16 {[%emt 0:00:07]} Bf4 {[%emt 0:00:06]} 34. Bxf4 {[%emt 0:00:02]} (34. Qxb4 $16 Ra8 35. Qe1 (35. Bxf4 exf4 36. Rd4 Re5 $16)) 34... exf4 $11 {[%emt 0:00:06][%cal Be5f4,Bf4f3,Bf3f2][%mdl 32]} 35. Rd4 {[%emt 0:00:14]} Rfe8 $1 {[%emt 0:00:00][%cal Rc6e4]} (35... Bxe4 $2 36. Rxe4 Qg3+ 37. Kh1 $18) 36. Qxb4 {[%emt 0:00:06]} Bxe4 {[%emt 0:00:02]} 37. Rxe4 {[%emt 0:00:01]} Rxe4 {[%emt 0:00:01]} 38. fxe4 {[%emt 0:00:01][%mdl 4096] Endgame KQR-KQR} Qg3+ $40 {[%emt 0:00:07][%mdl 128] Black has some attack.} 39. Kh1 $2 {[%emt 0:00:03][%mdl 8192]} (39. Kg1 $11) 39... f3 $19 {[%emt 0:00:00][%csl Gf3][%cal Rg3g2] [#]} 40. Qd2 {[%emt 0:00:05]} Rxe4 {[%emt 0:00:03] Black mates.} 41. Rg1 {[%emt 0:00:11]} Re2 {[%emt 0:00:02]} 42. Qd5 {[%emt 0:00:02]} f2 {[%emt 0:00:08]} 43. Rf1 {[%emt 0:00:01]} Re1 {[%emt 0:00:01][%cal Re1f1]} 44. Qc4 {[%emt 0:00:03]} Qe3 {[%emt 0:00:04] Weighted Error Value: White=0.71/Black=0.25 (precise)} (44... Qe5 $142 45. Qc1 Rxc1 46. Rxc1 Qe1+ 47. Rxe1 fxe1=Q+ 48. Kh2 Qe5+ 49. Kh1 Qxc5 50. g4 d5 51. b4 Qf2 52. a5 d4 53. a6 d3 54. a7 Qxa7 55. Kg2 Qe3 56. g5 d2 57. gxh6 d1=Q 58. hxg7+ Kxg7 59. h4 Qdg1#) 0-1

[Event "Super United Croatia GCT Blitz 2022"]
[Site "Zagreb"]
[Date "2022.07.24"]
[Round "12"]
[White "Topalov, Veselin"]
[Black "Van Foreest, Jorden"]
[Result "1-0"]
[ECO "A13"]
[WhiteElo "2728"]
[BlackElo "2678"]
[Annotator "TA"]
[PlyCount "145"]
[EventDate "2022.07.20"]
[EventType "tourn"]
[EventCountry "CRO"]
[SourceTitle "playchess.com"]
[Source "ChessBase"]
[SourceQuality "1"]
[TimeControl "300+2"]

{[%evp 9,145,0,7,10,0,0,18,9,19,10,18,16,10,2,9,4,10,8,16,11,24,26,44,44,89,89,63,37,52,0,8,0,25,0,8,0,56,49,54,32,43,48,55,31,0,10,150,96,382,388,358,392,417,403,401,348,367,359,341,258,464,468,697,392,353,389,775,772,871,864,847,795,885,462,693,673,851,813,775,707,665,670,655,655,1623,1632,1650,1656,1778,1654,1627,768,12837,12837,12838,12839,12839,12839,12840,12840,12841,12840,12841,12839,12840,12839,12840,12840,12844,12844,12845,12844,12847,12846,12850,12845,12845,12846,12846,12845,12845,12844,12845,12845,12845,12845,12845,12846,12846,12847,12847,12847,12848,12847,12849,12849,12850,12850]} 1. c4 {[%emt 0:00:01]} e6 {[%emt 0:00:01]} 2. Nf3 {[%emt 0:00:02]} d5 {[%emt 0:00:01]} 3. b3 {[%emt 0:00:02]} Nf6 {[%emt 0:00:04]} 4. Bb2 {[%emt 0:00:04]} b6 {[%emt 0:00:02]} 5. cxd5 {[%emt 0:00:14]} exd5 {[%emt 0:00:02]} 6. g3 {[%emt 0:00:01] A13: English Opening: 1...e6.} Bb7 {[%emt 0:00:06]} 7. Bg2 {[%emt 0:00:01]} Nbd7 {[%emt 0:00:01]} 8. O-O {[%emt 0:00:02] The position is equal.} g6 {[%emt 0:00:04]} 9. d4 {[%emt 0:00:05]} Bg7 {[%emt 0:00:02]} 10. Nc3 {[%emt 0:00:01]} O-O {[%emt 0:00:04]} 11. e3 {[%emt 0:00:02]} Re8 {[%emt 0:00:07]} 12. Rc1 {[%emt 0:00:01]} (12. Ne2 {is more complex.} Ne4 13. Nf4 Ndc5 14. Ne5) 12... c6 {[%emt 0:00:37] [#] Prevents Nb5.} 13. Rc2 $5 $146 {[%emt 0:00:02][%mdl 8] An interesting novelty.} ({Predecessor:} 13. Ne2 Ne4 14. Nf4 Rc8 15. Rc2 a5 16. Qc1 b5 17. Nd3 b4 18. Rd1 c5 19. Nxc5 Ndxc5 20. dxc5 Bxb2 21. Qxb2 {½-½ (39) Artemiev,V (2761)-Wei,Y (2741) Danzhou 2019}) 13... a5 {[%emt 0:00:09]} 14. Qc1 {[%emt 0:00:02]} Rc8 {[%emt 0:00:14]} 15. Rd1 {[%emt 0:00:03]} Qe7 {[%emt 0:00:07]} 16. Bh3 {[%emt 0:00:05]} Rcd8 {[%emt 0:00:04]} 17. Ba3 $1 {[%emt 0:00:01]} c5 {[%emt 0:00:03]} 18. Nd2 {[%emt 0:00:52]} h5 {[%emt 0:00:18]} 19. Na4 {[%emt 0:00:19][%cal Rd4c5]} (19. Bg2 $5 {[%cal Rc3a4]}) 19... Ng4 {[%emt 0:00:01]} 20. Nf1 {[%emt 0:00:12][%cal Rd4c5]} Qf6 {[%emt 0:00:35][%cal Rc5d4]} 21. Bb2 {[%emt 0:00:01][%cal Rd4c5]} (21. Bg2 $5 {[%cal Rh2h3]}) 21... c4 {[%emt 0:00:02]} 22. Nc3 {[%emt 0:00:39]} Bc6 {[%emt 0:00:26]} ({Better is} 22... Nb8 $11) 23. bxc4 $14 {[%emt 0:00:13]} dxc4 {[%emt 0:00:05][%cal Od7c5]} 24. d5 {[%emt 0:00:00]} Bb7 {[%emt 0:00:04] [#]} 25. Ne4 $1 {[%emt 0:00:02]} Qe7 {[%emt 0:00:03]} 26. Bxg7 {[%emt 0:00:02]} (26. Rxc4 $2 Bxb2 27. Qxb2 Nde5 28. Bxg4 (28. d6 $2 Nf3+ 29. Kg2 Qe5 $19) 28... Nxc4 29. Nf6+ Kh8 $19) 26... Kxg7 {[%emt 0:00:06]} (26... Qxe4 27. Bg2 (27. Rxc4 Qe7 $16) 27... Qe7 28. Bd4 $16 (28. d6 Qe6 $14)) 27. Bg2 {[%emt 0:00:11]} (27. Rxc4 Nde5 28. Bg2 (28. Rc7 $2 Nf3+ 29. Kh1 Qxe4 $19) 28... Nxc4 29. Qxc4 Ne5 $17) (27. Bxg4 hxg4 28. Nc3 (28. Rxc4 $2 Ne5 $19) 28... Ne5 $17) 27... Ndf6 {[%emt 0:00:20]} (27... Nde5 $1 $11 {remains equal.}) 28. d6 {[%emt 0:00:23]} (28. Qb2 $142 $1) 28... Qxe4 $4 {[%emt 0:00:35][%mdl 8192] Black cannot hold the game after this.} (28... Qd7 $16 {was necessary.} 29. Nxf6 Nxf6) 29. Bxe4 $18 {[%emt 0:00:03]} Nxe4 {[%emt 0:00:02]} 30. Qb2+ {[%emt 0:00:14]} (30. Rxc4 Nexf2 31. e4 Nxd1 32. Qxd1 Re6 $11) 30... Kh7 {[%emt 0:00:09]} 31. Qxb6 {[%emt 0:00:05]} Rd7 {[%emt 0:00:04]} 32. h4 {[%emt 0:00:11]} (32. f3 Ng5 33. Qxb7 (33. Rxc4 $2 Bxf3 34. Nd2 Rxd6 $19) (33. Qxa5 $2 Re5 $19) 33... Rxb7 $11) 32... Ne5 {[%emt 0:00:06]} 33. Nh2 {[%emt 0:00:01] Inhibits Nf3+. aiming for f4.} Re6 {[%emt 0:00:04]} 34. Rd4 {[%emt 0:00:32] Threatens to win with f4.} c3 $2 {[%emt 0:00:25]} (34... Nxd6 35. Qc5 (35. Qxa5 Nc6 $18) 35... Rd8) 35. a3 {[%emt 0:00:21]} Bc6 {[%emt 0:00:06]} (35... Nxd6 $142 36. Qxa5 Nc6 37. Qxc3 Nxd4 38. Qxd4 Ree7) 36. f3 {[%emt 0:00:23]} Nxg3 {[%emt 0:00:16]} 37. f4 {[%emt 0:00:06]} ({Weaker is} 37. Qxa5 Bxf3 38. Qxc3 Ne2+ 39. Rxe2 Bxe2 $18) 37... Be4 $2 {[%emt 0:00:03]} (37... Rb7 38. Qxb7 (38. Qxa5 Rb1+ 39. Kf2 Nh1+ 40. Ke2 Ng3+ 41. Kf2 Nh1+ 42. Ke2 Ng3+ 43. Kf2 $11) 38... Bxb7) 38. Rxe4 {[%emt 0:00:05] White is clearly winning.} Nxe4 {[%emt 0:00:01]} 39. fxe5 {[%emt 0:00:01]} Rxe5 {[%emt 0:00:01]} 40. Nf3 {[%emt 0:00:05]} Rd5 {[%emt 0:00:06]} 41. Kg2 {[%emt 0:00:02]} R5xd6 {[%emt 0:00:02]} (41... Kg7 $142 42. Rc1 R7xd6) 42. Qxa5 {[%emt 0:00:03]} Rd2+ {[%emt 0:00:14]} 43. Nxd2 {[%emt 0:00:02]} cxd2 {[%emt 0:00:01] [#]} 44. Rxd2 $3 {[%emt 0:00:01]} Rxd2+ {[%emt 0:00:01][%mdl 4096] Endgame KQ-KRN} 45. Kf3 {[%emt 0:00:02]} f5 {[%emt 0:00:03][%csl Ge4][%cal Rd2f2] [#]} 46. Kf4 $1 {[%emt 0:00:00]} Rd7 {[%emt 0:00:13] Inhibits Qa7.} 47. a4 {[%emt 0:00:04]} Nf6 {[%emt 0:00:02]} 48. Qb5 {[%emt 0:00:05]} Re7 {[%emt 0:00:11]} 49. a5 {[%emt 0:00:00] And now a6 would win.} Re4+ {[%emt 0:00:04]} 50. Kf3 {[%emt 0:00:01]} (50. Kg5 $142 Ng8 51. Qb7+ Re7 52. Qb6) 50... Ng4 {[%emt 0:00:00]} 51. a6 {[%emt 0:00:02]} Rxe3+ {[%emt 0:00:01]} 52. Kf4 {[%emt 0:00:01]} Kh6 {[%emt 0:00:03]} 53. a7 {[%emt 0:00:02]} Re4+ {[%emt 0:00:01]} 54. Kf3 {[%emt 0:00:01]} Re3+ {[%emt 0:00:01] [#]} 55. Kg2 $1 {[%emt 0:00:01]} Ra3 {[%emt 0:00:04]} 56. Qb8 {[%emt 0:00:01][%cal Rb8h8]} Ra2+ {[%emt 0:00:01]} 57. Kf1 {[%emt 0:00:03][%cal Rb8h8]} Ne3+ {[%emt 0:00:01]} 58. Ke1 {[%emt 0:00:01][%cal Rb8h8]} Kh7 {[%emt 0:00:06] Against Qh8+} 59. a8=Q {[%emt 0:00:02]} Rxa8 {[%emt 0:00:01]} 60. Qxa8 {[%emt 0:00:02]} Ng2+ {[%emt 0:00:01]} 61. Kf2 {[%emt 0:00:00]} Nxh4 {[%emt 0:00:00]} 62. Kg3 {[%emt 0:00:01]} g5 {[%emt 0:00:01]} 63. Qd8 {[%emt 0:00:03]} f4+ {[%emt 0:00:01]} 64. Kh3 {[%emt 0:00:04]} Kg6 {[%emt 0:00:03]} 65. Qd6+ {[%emt 0:00:01]} Kg7 {[%emt 0:00:04]} 66. Qe7+ {[%emt 0:00:02]} Kg6 {[%emt 0:00:01]} 67. Kh2 {[%emt 0:00:04]} Nf3+ {[%emt 0:00:01]} 68. Kg2 {[%emt 0:00:02]} Nh4+ {[%emt 0:00:02]} 69. Kf2 {[%emt 0:00:00]} Kf5 {[%emt 0:00:03]} 70. Qf7+ {[%emt 0:00:02]} Kg4 {[%emt 0:00:02]} 71. Qe6+ {[%emt 0:00:01]} Nf5 {[%emt 0:00:01]} 72. Qd7 {[%emt 0:00:07]} h4 {[%emt 0:00:08]} 73. Qd1+ {Weighted Error Value: White=0.27 (precise) /Black=0.54} 1-0

[Event "Super United Croatia GCT Blitz 2022"]
[Site "Zagreb"]
[Date "2022.07.24"]
[Round "12"]
[White "Saric, Ivan"]
[Black "Nepomniachtchi, Ian"]
[Result "0-1"]
[ECO "C42"]
[WhiteElo "2680"]
[BlackElo "2766"]
[Annotator "TA"]
[PlyCount "126"]
[EventDate "2022.07.20"]
[EventType "tourn"]
[EventCountry "CRO"]
[SourceTitle "playchess.com"]
[Source "ChessBase"]
[SourceQuality "1"]
[TimeControl "300+2"]

{[%evp 16,126,37,33,41,37,38,25,35,25,27,11,15,14,45,-8,-8,-8,-12,-14,-9,-10,0,-5,0,-12,-14,-14,-14,-14,-13,-26,0,-6,0,-31,-12,-21,-28,-21,-27,-57,-29,-166,-166,-145,-150,-143,-172,-166,-172,-173,-72,-80,-65,-68,-40,-42,-43,-79,-56,-103,0,0,0,-77,-77,-81,-81,-81,-81,-81,-81,-81,-85,-82,-77,-77,-77,-79,-70,-114,-102,-138,-145,-133,-109,-177,-175,-140,0,-655,-598,-881,-861,-1126,-1126,-1013,-1020,-969,-828,-816,-779,-765,-758,-1913,-1732,-1239,-1106,-1015,-972,-1099,-1083]} 1. e4 {[%emt 0:00:01]} e5 {[%emt 0:00:01]} 2. Nf3 {[%emt 0:00:01]} Nf6 {[%emt 0:00:01][%cal Bg8f6,Bf6e4,Be4d2][%mdl 32]} 3. Nxe5 {[%emt 0:00:01]} d6 {[%emt 0:00:01]} 4. Nf3 {[%emt 0:00:01]} Nxe4 {[%emt 0:00:01]} 5. d4 {[%emt 0:00:11]} d5 {[%emt 0:00:02]} 6. Bd3 {[%emt 0:00:01]} Nc6 {[%emt 0:00:02]} 7. O-O {[%emt 0:00:02]} Be7 {[%emt 0:00:02]} 8. Nbd2 {[%emt 0:00:03] is recently more successful than 8.c4.} Bf5 {[%emt 0:00:01]} 9. Re1 {[%emt 0:00:02][%cal Rd2e4]} Nxd2 {[%emt 0:00:02] C42: Petroff Defence: 3 Nxe5 and unusual White 3rd moves.} 10. Qxd2 {[%emt 0:00:02]} Qd7 {[%emt 0:00:02]} 11. Bxf5 {[%emt 0:00:23]} Qxf5 {[%emt 0:00:01] White has an edge.} 12. Ne5 {[%emt 0:00:36]} Nd8 {[%emt 0:00:01] [#]} 13. Qd3 $146 {[%emt 0:01:03]} (13. Qa5 {seems wilder.} c6 14. c4 f6 15. Nf3) ({Predecessor:} 13. Qa5 c6 14. c4 f6 15. h3 O-O 16. Ng4 Qd7 17. cxd5 cxd5 18. Ne3 Nc6 19. Qxd5+ Qxd5 20. Nxd5 {½-½ (43) Boldysh,K (2403)-Dunlop,G (2536) ICCF email 2019}) 13... Qxd3 {[%emt 0:00:07]} 14. Nxd3 {[%emt 0:00:01]} Ne6 {[%emt 0:00:33]} 15. Nf4 {[%emt 0:00:20]} (15. c3 $14) 15... Nxf4 $1 $11 {[%emt 0:00:17]} 16. Bxf4 {[%emt 0:00:01]} Kd7 {[%emt 0:00:01]} 17. c3 {[%emt 0:00:19][%cal Of4c7]} Rhe8 {[%emt 0:00:05]} 18. g4 {[%emt 0:00:26]} Bf8 {[%emt 0:00:07]} 19. Kg2 {[%emt 0:00:05]} b5 {[%emt 0:00:04]} 20. Bd2 {[%emt 0:00:15]} Rxe1 {[%emt 0:00:15]} 21. Rxe1 {[%emt 0:00:21][%mdl 4096] Endgame KRB-KRB} a5 {[%emt 0:00:01][%cal Ba7a5,Ba5a4,Ba4a3][%mdl 32]} 22. h4 {[%emt 0:00:06]} b4 {[%emt 0:00:04]} 23. h5 {[%emt 0:00:12]} bxc3 {[%emt 0:00:07]} 24. Bxc3 {[%emt 0:00:01]} a4 {[%emt 0:00:01]} 25. Kf3 {[%emt 0:00:29]} Ra6 {[%emt 0:00:03]} 26. Ke2 {[%emt 0:00:06]} Rc6 {[%emt 0:00:13]} 27. Kd3 {[%emt 0:00:07]} Rf6 {[%emt 0:00:01]} 28. Rf1 {[%emt 0:00:07]} a3 {[%emt 0:00:22]} 29. b4 {[%emt 0:00:21]} (29. f4 $11) 29... Rf3+ $19 {[%emt 0:00:03]} 30. Kc2 {[%emt 0:00:01]} Kc6 {[%emt 0:00:03]} 31. Bd2 {[%emt 0:00:15]} Kb5 {[%emt 0:00:06]} 32. Be3 {[%emt 0:00:01]} Bxb4 {[%emt 0:00:16]} 33. Kd3 {[%emt 0:00:02][%cal Oh5h6]} Rf6 {[%emt 0:00:29] Prevents h6.} (33... Rh3 $1 $19 {and Black stays clearly on top. Strongly threatening ...c5.} 34. Rc1 Bd6 35. Rb1+ Kc6) 34. Rb1 {[%emt 0:00:01] Black must now prevent Bd2.} Ka4 {[%emt 0:00:16]} 35. Rc1 {[%emt 0:00:00]} Ba5 {[%emt 0:00:06]} 36. Rc5 {[%emt 0:00:04]} c6 {[%emt 0:00:01]} 37. f4 {[%emt 0:00:03]} Bb4 {[%emt 0:00:08]} 38. Rc2 {[%emt 0:00:02]} (38. Rc1 $15 {might be stronger.}) 38... g6 {[%emt 0:00:04]} (38... Re6 $17) 39. g5 $11 {[%emt 0:00:02]} Re6 {[%emt 0:00:01]} 40. Rh2 {[%emt 0:00:02] [#]} (40. f5 $11 gxf5 41. Rf2) 40... Re7 $1 $17 {[%emt 0:00:24]} 41. hxg6 {[%emt 0:00:01]} fxg6 {[%emt 0:00:02]} 42. Rh1 {[%emt 0:00:00]} Bd6 {[%emt 0:00:28]} 43. Rc1 {[%emt 0:00:01]} Kb5 {[%emt 0:00:00]} 44. Rb1+ {[%emt 0:00:01]} Ka6 {[%emt 0:00:01]} 45. Rc1 {[%emt 0:00:05]} Kb6 {[%emt 0:00:01]} 46. Rb1+ {[%emt 0:00:00]} Kc7 {[%emt 0:00:01]} 47. Rh1 {[%emt 0:00:03]} Rf7 {[%emt 0:00:02]} 48. Bc1 {[%emt 0:00:06]} Kd7 {[%emt 0:00:03]} ({Don't take} 48... Bxf4 49. Rf1 Bxc1 50. Rxf7+ Kb6 51. Rxh7 $16) 49. Ke2 {[%emt 0:00:02]} Ke6 {[%emt 0:00:08]} 50. Kf3 {[%emt 0:00:02]} Rb7 {[%emt 0:00:02] Hoping for ...Rb1.} 51. Re1+ {[%emt 0:00:03]} (51. Rh2 $17 {keeps fighting.}) 51... Kf5 $19 {[%emt 0:00:05]} 52. Re8 {[%emt 0:00:01][%cal Oc1a3] [#]} Rb1 {[%emt 0:00:01]} (52... Rb8 $1 $17 {[%cal Rb8e8]} 53. Rxb8 Bxb8) 53. Be3 $2 {[%emt 0:00:01][%mdl 8192]} (53. Bxa3 $11 Rb8 54. Rxb8 Bxb8 55. Bc1) 53... Rf1+ {[%emt 0:00:02] Black is clearly winning.} 54. Ke2 {[%emt 0:00:01]} Ra1 {[%emt 0:00:03]} 55. Kf3 {[%emt 0:00:02]} Rxa2 {[%emt 0:00:05]} 56. Rd8 {[%emt 0:00:01]} Ke6 {[%emt 0:00:02]} 57. Re8+ {[%emt 0:00:01]} Kd7 {[%emt 0:00:04]} 58. Ra8 {[%emt 0:00:01]} Rh2 {[%emt 0:00:04]} 59. Ra7+ {[%emt 0:00:04]} Ke6 {[%emt 0:00:01] aiming for ...Rh3+.} 60. Kg3 {[%emt 0:00:01]} Rc2 {[%emt 0:00:05]} 61. Kf3 {[%emt 0:00:03]} Rc3 {[%emt 0:00:03]} 62. Ke2 {[%emt 0:00:01]} Kf5 {[%emt 0:00:02] ...Ke4 is the strong threat.} 63. Bd2 {[%emt 0:00:01]} Rh3 {[%emt 0:00:03] Weighted Error Value: White=0.43/Black=0.13 (very precise)} 0-1

[Event "Super United Croatia GCT Blitz 2022"]
[Site "Zagreb"]
[Date "2022.07.24"]
[Round "13"]
[White "Carlsen, Magnus"]
[Black "Dominguez Perez, Leinier"]
[Result "1/2-1/2"]
[ECO "C44"]
[WhiteElo "2864"]
[BlackElo "2754"]
[Annotator "TA"]
[PlyCount "76"]
[EventDate "2022.07.20"]
[EventType "tourn"]
[EventCountry "CRO"]
[SourceTitle "playchess.com"]
[Source "ChessBase"]
[SourceQuality "1"]
[TimeControl "300+2"]

{[%evp 10,76,0,0,0,0,0,0,-7,-12,0,-25,-16,-32,-29,-41,-23,-15,-20,-18,0,-12,-7,-27,-17,-18,-9,-40,0,-82,0,0,-8,-19,43,39,74,0,27,27,35,0,8,0,9,8,8,4,45,39,52,0,0,0,0,0,0,0,196,179,191,0,0,0,0,0,0,0,0]} 1. e4 {[%emt 0:00:01]} e5 {[%emt 0:00:01]} 2. Nf3 {[%emt 0:00:03]} Nf6 {[%emt 0:00:01]} 3. d3 {[%emt 0:00:04]} Nc6 {[%emt 0:00:02]} 4. g3 {[%emt 0:00:01]} Bc5 {[%emt 0:00:07]} 5. Bg2 {[%emt 0:00:02]} d6 {[%emt 0:00:01]} 6. O-O {[%emt 0:00:05]} O-O {[%emt 0:00:05] C44: Ponziani Opening and Scotch Gambit.} 7. c3 {[%emt 0:00:05]} a5 {[%emt 0:00:02][%cal Ba7a5,Ba5a4][%mdl 32]} 8. Re1 {[%emt 0:00:39]} Re8 {[%emt 0:00:12]} 9. h3 {[%emt 0:00:13]} h6 {[%emt 0:00:05] [#]} 10. Nbd2 $146 {[%emt 0:00:02]} ({Predecessor:} 10. d4 Ba7 11. Be3 exd4 12. Nxd4 Ne5 13. Nc2 Bxe3 14. Nxe3 Bd7 15. Qc2 Qc8 16. f4 {½-½ (57) Duda,J (2729)-Anand,V (2764) Paris 2019}) 10... Bd7 {[%emt 0:00:38]} 11. Qe2 {[%emt 0:00:37]} a4 {[%emt 0:00:09]} 12. Nf1 {[%emt 0:00:04]} b5 {[%emt 0:00:20]} 13. Be3 {[%emt 0:00:06]} Bxe3 {[%emt 0:00:11]} 14. Nxe3 {[%emt 0:00:02]} Ne7 {[%emt 0:00:33]} 15. Nh4 {[%emt 0:00:24]} c5 {[%emt 0:00:15]} 16. f4 {[%emt 0:00:03]} Qc7 {[%emt 0:00:29][%cal Od6d5]} 17. Rf1 {[%emt 0:00:07]} Ra6 {[%emt 0:00:06][%cal Od6d5]} 18. Rad1 {[%emt 0:00:20]} Rb6 {[%emt 0:00:25][%cal Od6d5]} 19. Kh1 {[%emt 0:00:11]} (19. d4 $11) 19... b4 {[%emt 0:00:13]} (19... d5 $17) 20. c4 $11 {[%emt 0:00:02]} Nc6 {[%emt 0:00:17]} 21. Qf2 {[%emt 0:00:39]} Be6 {[%emt 0:00:21]} (21... exf4 $11 22. Qxf4 Ne5) 22. f5 $14 {[%emt 0:00:09]} Bd7 {[%emt 0:00:01]} 23. g4 {[%emt 0:00:04]} (23. Nd5 $16 Nxd5 24. cxd5) 23... Nd4 {[%emt 0:00:05]} 24. Nf3 {[%emt 0:00:04]} Qd8 {[%emt 0:00:13]} 25. Rd2 {[%emt 0:00:52]} Bc6 {[%emt 0:00:02]} 26. Qg3 {[%emt 0:00:07]} Rb7 {[%emt 0:00:12]} 27. Rdf2 {[%emt 0:00:21]} Nh7 {[%emt 0:00:08][%cal Bf6h7,Bh7f8,Bf8e6][%mdl 32]} 28. h4 {[%emt 0:00:03]} g5 {[%emt 0:00:09]} 29. fxg6 {[%emt 0:00:06]} fxg6 {[%emt 0:00:01]} 30. Nxd4 {[%emt 0:00:02]} (30. h5 $1 $14 Nxf3 31. Rxf3 (31. Qxf3 Qh4+ 32. Qh3 Qxh3+ 33. Bxh3 Rg7 $14)) 30... cxd4 $11 {[%emt 0:00:02]} 31. Nd5 {[%emt 0:00:02] aiming for Nf6+.} Rf8 {[%emt 0:00:20] Inhibits Nf6+.} 32. Rxf8+ {[%emt 0:00:05]} Nxf8 {[%emt 0:00:01]} 33. g5 {[%emt 0:00:06] Strongly threatening Nf6+.} hxg5 $2 {[%emt 0:00:03]} (33... Bxd5 $11 {and Black has nothing to worry.} 34. exd5 hxg5) 34. Nf6+ $18 {[%emt 0:00:01]} ({Stronger than} 34. Qxg5 Qxg5 35. hxg5 Bxd5 36. exd5 Rf7 $15) ({Inferior is} 34. hxg5 Bxd5 35. exd5 Rf7 $11) 34... Kg7 {[%emt 0:00:06] [#]} 35. Qxg5 $2 {[%emt 0:00:11]} (35. Bh3 $1 $18 Rf7 36. hxg5) 35... Ne6 $11 {[%emt 0:00:04] The position is equal.} 36. Nh5+ $1 {[%emt 0:00:01]} Kh7 {[%emt 0:00:01]} 37. Nf6+ {[%emt 0:00:02]} Kg7 {[%emt 0:00:00]} 38. Nh5+ $1 {[%emt 0:00:04]} Kh7 {Weighted Error Value: White=0.19 (very precise) /Black=0.23 (precise)} 1/2-1/2